Workbook

Sheet Menu
A1: Ceci est une calculatrice d'aide aux décisions d'affaire à la ferme qui comporte 4 feuilles de travail. Certains champs doivent être remplis par l'utilisateur. Elle peut avoir 24 colonnes de largeur et 55 rangées.
A2: Menu - Calculateur des tarifs des travaux agricoles à forfait
A17: Le tableur Excel Calculateur des tarifs des travaux agricoles à forfait vous permet de calculer les coûts qu’il faut comptabiliser pour les travaux agricoles à forfait. Il comprend des tableaux permettant de comptabiliser les coûts relatifs au matériel qui sont requis dans le calcul ainsi qu’une fiche technique contenant les résultats de l’enquête sur les tarifs perçus en 2024 pour les travaux agricoles à forfait en Ontario et un guide de rédaction de contrat de travail agricole à forfait. Le tableur Excel Calculateur des tarifs de location d'équipement à court terme, que vous trouverez sous l’onglet « Calculatrice », vous permet de calculer les coûts qu’il faut comptabiliser pour la location d’équipement à court terme.
A18: Plusieurs cellules comportent un triangle rouge dans leur coin supérieur droit. En plaçant le curseur de votre souris sur ce triangle, vous affichez une courte description des données à saisir dans la cellule en question.
A20: Conçu par John Molenhuis
A21: chargé de programme, analyse des activités commerciales et des coûts de production
A22: MAAAO, Brighton
A23: Courriel: john.molenhuis@ontario.ca
A24: Révisé le june 2025
A25: fin de la feuille de calcul

Sheet Calculatrice
B2: Calculateur des tarifs des travaux agricoles à forfait
B3: Les nombres et le texte en bleu dans les cellules dont l’arrière-plan est jaune peuvent être modifiés pour chaque producteur.
B4: PARAMÈTRES GÉNÉRAUX
B5: Taux d'intérêt*** | C5: 0.05 | D5: Coût du carburant/litre | E5: 1.35
B6: Tarif assurance et remisage (% du prix d'achat) | C6: 0.01 | D6: Consommation de carburant - litres/CV-h du moteur | E6: 0.192 | AB6: Tracteurs 2RM | AC6: 2WD tractors | AF6: 2WD tractors
D7: Rémunération de conducteur (entrepreneur ou salarié) | E7: 27 | AB7: Tracteurs avec assistance roues avant | AC7: FWA tractors | AF7: FWA tractors
D8: Allocation de travail pour le déplacement des machines et temps morts | E8: 0.15 | AB8: Tracteurs 4RM | AC8: 4WD tractors | AF8: 4WD tractors
B9: UNITÉ MOTRICE (TRACTEUR OU MACHINE AUTOMOTRICE) | AB9: Tracteurs à chenilles | AC9: Self Propelled combines | AF9: Self Propelled combines
B10: Puissance nominale du moteur en CV | C10: 375 | D10: Moissonneuses-batteuses automotrices | AB10: Moissonneuses-batteuses automotrices | AC10: Self propelled high clearance sprayer | AF10: Self propelled high clearance sprayer
B11: Vie utile (années) | C11: =IF(D10<>"",VLOOKUP(D10,DeprRep,3,FALSE),0) -> 12 | D11: Prix d'achat | E11: 740000 | AB11: Andainage automotrices | AC11: Self propelled forage harvesters | AF11: Self propelled forage harvesters
B12: Acres par année | C12: =C15*E12 -> 2550 | D12: Heures par année | E12: =IF(D10<>"",VLOOKUP(D10,DeprRep,2,FALSE),0) -> 250 | AB12: Récolteuses-hacheuses automotrices | AC12: Depreciation
D13: Consommation moyenne de carburant (L/h) | E13: =C10*E6 -> 72 | AB13: Récolteuses-hacheuses automotrices - Têtes | AC13: Trade in value
AB14: Faucheuse-conditionneuse automotrices | AC14: Repairs | AD14: =VLOOKUP(D10,DeprRep,4) -> 
B15: Taux de travail: acres/heure (voir tableau 5) | C15: =C16*C17*(C18*100)/825 -> 10.2 | D15: Taux d’amortissement annuel (% du prix d’achat) Tableau 3 | E15: =IF(D10<>"",VLOOKUP(D10,DeprRep,4,FALSE),0) -> 5.6 | AB15: Transporteur automoteur de petites balles carrées
B16: Vitesse moyenne (miles par heure) | C16: 3.3 | D16: Pourcentage à allouer pour les réparations annuelles (% du prix d’achat) Tableau 3 | E16: =IF(D10<>"",VLOOKUP(D10,DeprRep,5,FALSE),0) -> 2.63 | AB16: Pulvérisateurs enjambeurs automoteurs | AD16: =VLOOKUP(D10,Tableaux!#REF!,5) -> 
B17: Largeur du matériel (pieds) | C17: 30
B18: Efficacité du champ (%) | C18: 0.85 | D18: Valeur de reprise** | E18: =IF(E15=0,0,E11-(E11*E15/100*C11)) -> 242720
B20: Coûts fixes annuels | E20: Totaux annuel $ | F20: $/heure | G20: $/acre | AB20: Charrue à 4 socs 18 pouces | AC20: Têtes à rigide
B21: Recouvrement des investissements* | AB21: Charrue à 6 socs 18 pouces | AC21: Têtes à ramasseur
B22: prix d’achat – valeur de reprise | D22: =E11-E18 -> 497280 | AB22: Charrue à 8 socs 18 pouces | AC22: Têtes à flexible
B23: facteur lié au recouvrement des investissements Tableau 4 | C23: x | D23: =IFERROR((C5*(1+C5)^C11)/((1+C5)^C11-1),0) -> 0.11282541 | AB23: Cultivateur de 24 pieds | AC23: Têtes à tapis
D24: =D22*D23 -> 56105.8199 | AB24: Cultivateur de 31 pieds | AC24: Têtes à maïs
B25: valeur de reprise x taux d’intérêt** | C25: + | D25: =E18*C5 -> 12136 | AB25: Cultivateur de 44 pieds | AC25: Andainage automotrices
B26: Recouvrement des investissements* | E26: =D24+D25 -> 68241.8199 | F26: =IFERROR(E26/$E$12,0) -> 272.9672796 | G26: =IFERROR(F26/$C$15,0) -> 26.761498 | AB26: Charrue chisel de 16 pieds | AC26: Remorques à grain
AB27: Charrue chisel de 21 pieds | AC27: Tarières - (puissance)
B28: Assurance et remisage | D28: ="purchase price x "&$C$6*100&" %" -> purchase price x 1 % | E28: =E11*C6 -> 7400 | F28: =IFERROR(E28/$E$12,0) -> 29.6 | G28: =IFERROR(F28/$C$15,0) -> 2.901960784 | AB28: Pulvériseur tandem de 24 pieds | AC28: Tarières - (prise de force)
B29: Coûts fixes totaux | E29: =SUM(E26:E28) -> 75641.8199 | F29: 302.5672796 | G29: 29.66345878 | H29: (A) | AB29: Pulvériseur tandem de 30 pieds | AC29: Aspirateur à grains
AB30: Pulvériseur déporté de 10 pieds | AC30: Faucheuse-conditionneuse (faucille) traîné
B31: Coûts d’utilisation annuels | AB31: Pulvériseur déporté de 16 pieds | AC31: Faucheuse-conditionneuse (disque) traîné
B32: Carburant et lubrifiants (Tableau 5) | D32: (litres/hour x hours/year x fuel cost/litre) | E32: =E13*E12*E5 -> 24300 | F32: =IFERROR(E32/$E$12,0) -> 97.2 | G32: =IFERROR(F32/$C$15,0) -> 9.529411765 | AB32: Machine de labour vertical de 21 pieds | AC32: Râteau à foin (roue)
B33: Réparations | D33: annual repair rate x purchase price | E33: =E11*E16/100 -> 19462 | F33: 77.848 | G33: 7.632156863 | AB33: Machine de labour vertical de 30 pieds | AC33: Presses à balles rondes
B34: Coûts d’utilisation totaux | E34: =SUM(E32:E33) -> 43762 | F34: 175.048 | G34: 17.16156863 | H34: (B) | AB34: Machine de labour vertical de 43 pieds | AC34: Presses à grosses balles carrées
B35: Totaux | E35: =SUM(E34,E29) -> 119403.8199 | F35: 477.6152796 | G35: 46.82502741 | AB35: Machine de labour en bandes à 12 rangs | AC35: Presses à petites balles carrées
B36: + MATÉRIEL 1 (INSTRUMENT ARATOIRE, MACHINE MUE PAR | D36: Têtes à maïs | AB36: Semoir en ligne à 6 rangs de 30 pouces | AC36: Transporteur de balles rondes - traîné
B37: PRISE DE FORCE, AUTRE) | D37: Moissonneuse-batteuse à maïs, 12 becs cueilleurs–30 po | AB37: Semoir en ligne à 12 rangs de 30 pouces | AC37: Transporteur de grosses balles carrées - traîné
B38: Vie utile (années) | C38: =IF(D36<>"",VLOOKUP(D36,DeprRep,3,FALSE),0) -> 15 | D38: Prix d'achat | E38: 170000 | AB38: Semoir en ligne à 16 rangs de 30 pouces | AC38: Foreuse pneumatique (ouvreurs indépendants)
B39: Acres par année | C39: =E39*C15 -> 1020 | D39: Heures par année | E39: =IF(D36<>"",VLOOKUP(D36,DeprRep,2,FALSE),0) -> 100 | AB39: Semoir-distributeur à 6 rangs de 30 pouces | AC39: Foreuse pneumatique (houe)
AB40: Semoir-distributeur à 12 rangs de 30 pouces | AC40: Foreuse pneumatique (disque)
B41: Valeur de reprise** | C41: =IF(E41="","",E38-(E38*E41/100*C38)) -> 57800 | D41: Taux d’amortissement annuel (% du prix d’achat) Tableau 3 | E41: =IF(D36<>"",VLOOKUP(D36,DeprRep,4,FALSE),0) -> 4.4 | AB41: Semoir-distributeur à 16 rangs de 30 pouces | AC41: Semoir pneumatique
D42: Pourcentage à allouer pour les réparations annuelles (% du prix d’achat) Tableau 3 | E42: =IF(D36<>"",VLOOKUP(D36,DeprRep,5,FALSE),0) -> 2.94 | AB42: Semoir à céréales de 25 pieds | AC42: Semoir pour cultures en rangs
B43: Coûts fixes annuels | E43: Totaux annuel $ | F43: $/heure | G43: $/acre | AB43: Semoir à céréales de 35 pieds | AC43: Charrues
B44: Recouvrement des investissements* | AB44: Semoir à roues plombeuses, 12 pieds | AC44: Disques
B45: prix d’achat – valeur de reprise | D45: =E38-C41 -> 112200 | AB45: Semoir à roues plombeuses, 20 pieds | AC45: Cultivateurs
B46: facteur lié au recouvrement des investissements Tableau 4 | C46: x | D46: =IFERROR((C5*(1+C5)^C38)/((1+C5)^C38-1),0) -> 0.09634228761 | AB46: Semoir (semis direct), 15 pieds | AC46: Herses standards
D47: =D45*D46 -> 10809.60467 | AB47: Semoir (semis direct), 20 pieds | AC47: Herses lourdes
B48: valeur de reprise x taux d’intérêt** | C48: + | D48: =(C41*C5) -> 2890 | AB48: Pulvérisateur de 90 pieds, tracté | AC48: Herses de tasseurs | AM48: per hour | AN48: implement1 | AO48: implement2 | AQ48: power + return+operator
B49: Recouvrement des investissements* | E49: =D47+D48 -> 13699.60467 | F49: =IFERROR(E49/$E$39,0) -> 136.9960467 | G49: =IFERROR(F49/($C$15),0) -> 13.43098497 | AB49: Pulvérisateur de 90 pieds, automoteur | AC49: Machines de labour vertical | AM49: trade in | AN49: =E38-C41 -> 112200 | AO49: =E60-C63 -> 0 | AP49: =SUM(AN49:AO49) -> 112200
AB50: Faucheuse-conditionneuse de 9 pieds | AC50: Rouleau | AM50: cap recovery rate | AN50: =D68 -> 0
B51: Assurance et remisage | D51: ="prix d’achat x "&$C$6*100&" %" -> prix d’achat x 1 % | E51: =E38*C6 -> 1700 | F51: =IFERROR(E51/$E$39,0) -> 17 | G51: =IFERROR(F51/($C$15),0) -> 1.666666667 | AB51: Faucheuse-conditionneuse rotative de 13 pieds | AC51: Décapeuses | AN51: =AN49*AN50 -> 0 | AO51: =AO49*AN50 -> 0 | AP51: =SUM(AN51:AO51) -> 0
B52: Coûts fixes totaux | E52: =SUM(E45:E51) -> 15399.60467 | F52: 153.9960467 | G52: =IFERROR(F52/($C$15),0) -> 15.09765164 | H52: (C) | AB52: Presse à balles carrées | AC52: Enfonce-pieux | AM52: interest | AN52: =C41*C39 -> 58956000 | AO52: =C63*C61 -> 0
AB53: Presse à balles rondes de 1000 lb | AC53: Mélangeur d'aliments vertical | AN53: =SUM(AN51:AN52) -> 58956000 | AO53: =SUM(AO51:AO52) -> 0 | AP53: =SUM(AN53:AO53) -> 58956000
B54: Coûts d’utilisation annuels | AB54: Presse à balles rondes de 1500 lb | AC54: Mélangeur-broyeur et mélangeur d'aliments | AM54: insurance | AN54: =E38*0.01 -> 1700 | AO54: =E60*0.01 -> 0 | AP54: =SUM(AN54:AO54) -> 1700
B55: Réparations | D55: pourcentage à allouer pour les réparations annuelles x prix d’achat | E55: =(E38*E42/100) -> 4998 | F55: =IFERROR(E55/$E$39,0) -> 49.98 | G55: =IFERROR(F55/($C$15),0) -> 4.9 | AB55: Presse à grosses balles carrées | AC55: Broyeur de balles | AM55: repairs | AN55: =E38*E42/100 -> 4998 | AO55: =E60*E64/100 -> 0 | AP55: =SUM(AN55:AO55) -> 4998
B56: Coûts d’utilisation totaux | E56: =SUM(E54:E55) -> 4998 | F56: 49.98 | G56: =IFERROR(F56/($C$15),0) -> 4.9 | H56: (D) | AB56: Presse à balles rondes de 1000 lb/enrubanneuse | AC56: Épandeurs de fumier | AM56: Total | AN56: =SUM(AN53,AN54,AN55) -> 58962698 | AO56: =SUM(AO53,AO54,AO55) -> 0 | AP56: =SUM(AN56:AO56) -> 58962698 | AQ56: =E35+(E35*C81)+E85 -> 145076.8929 | AR56: =SUM(AP56:AQ56,AN57:AO57) -> 67952179.59
B57: Coûts totaux | E57: =SUM(E56,E52) -> 20397.60467 | F57: =SUM(F56,F52) -> 203.9760467 | G57: 19.99765164 | AB57: Récolteuse-hacheuse à 2 rangs | AM57: profit | AN57: =AN56*C81 -> 8844404.7 | AO57: =AO56*C81 -> 0
B58: + MATÉRIEL 2 (INSTRUMENT ARATOIRE, MACHINE MUE PAR | AB58: Récolteuse-hacheuse automotrice à 6 rangs de 15 pieds | AM58: per hour | AN58: =IFERROR(AN56/E39,"") -> 589626.98 | AO58: =IFERROR(AO56/E61,"") ->  | AQ58: =IFERROR(AQ56/E12,"") -> 580.3075715 | AR58: =SUM(AN58:AQ58) -> 590207.2876
B59: PRISE DE FORCE, AUTRE) | AB59: Grosse souffleuse à fourrage
B60: Vie utile (années) | C60: =IF(D58<>"",VLOOKUP(D58,DeprRep,3,FALSE),0) -> 0 | D60: Prix d'achat | AB60: Moissonneuse-batteuse à maïs, 6 becs cueilleurs–30 po | AM60: ST rental | AN60: implement1 | AO60: implement2 | AQ60: power
B61: Acres par année | C61: =E61*C15 -> 0 | D61: Heures par année | E61: =IF(D58<>"",VLOOKUP(D58,DeprRep,2,FALSE),0) -> 0 | AB61: Moissonneuse-batteuse à maïs, 12 becs cueilleurs–30 po | AM61: machine costs | AN61: =AN56 -> 58962698 | AO61: =AO56 -> 0 | AQ61: =E35-E32 -> 95103.8199 | AR61: =SUM(AN61:AQ61) -> 59057801.82
AB62: Moissonneuse-batteuse à céréales, 25 pieds | AM62: profit | AN62: =AN61*E101 -> 8844404.7 | AO62: =AO61*E101 -> 0 | AQ62: =AQ61*E101 -> 14265.57298 | AR62: =SUM(AN62:AQ62) -> 8858670.273
B63: Valeur de reprise** | C63: =IF(E63="","",E60-(E60*E63/100*C60)) -> 0 | D63: Taux d’amortissement annuel (% du prix d’achat) Tableau 3 | E63: =IF(D58<>"",VLOOKUP(D58,DeprRep,4,FALSE),0) -> 0 | AB63: Moissonneuse-batteuse à céréales, 35 pieds | AM63: total | AN63: =SUM(AN61:AN62) -> 67807102.7 | AO63: =SUM(AO61:AO62) -> 0 | AQ63: =SUM(AQ61:AQ62) -> 109369.3929 | AR63: =SUM(AR61:AR62) -> 67916472.09
D64: Pourcentage à allouer pour les réparations annuelles (% du prix d’achat) Tableau 3 | E64: =IF(D58<>"",VLOOKUP(D58,DeprRep,5,FALSE),0) -> 0 | AM64: per hour | AN64: =IFERROR(AN63/E39,"") -> 678071.027 | AO64: =IFERROR(AO63/E61,"") ->  | AQ64: =IFERROR(AQ63/E12,"") -> 437.4775715 | AR64: =SUM(AN64:AQ64) -> 678508.5046
B65: Coûts fixes annuels | E65: Totaux annuel $ | F65: $/heure | G65: $/acre
B66: Recouvrement des investissements*
B67: prix d’achat – valeur de reprise | D67: =(E60-C63) -> 0
B68: facteur lié au recouvrement des investissements Tableau 4 | C68: x | D68: =IFERROR((C5*(1+C5)^C60)/((1+C5)^C60-1),0) -> 0
D69: =IFERROR(D67*D68,0) -> 0
B70: valeur de reprise x taux d’intérêt** | C70: + | D70: =(C63*C5) -> 0
B71: Recouvrement des investissements* | E71: =D69+D70 -> 0 | F71: =IFERROR(E71/$E$61,0) -> 0 | G71: =IFERROR(E71/($E$61*$C$15),0) -> 0
B73: Assurance et remisage | D73: ="prix d’achat x "&$C$6*100&" %" -> prix d’achat x 1 % | E73: =E60*C6 -> 0 | F73: =IFERROR(E73/$E$61,0) -> 0 | G73: =IFERROR(E73/($E$61*$C$15),0) -> 0
B74: Coûts fixes totaux | E74: =SUM(E67:E73) -> 0 | F74: 0 | G74: =IFERROR(E74/($E$61*$C$15),0) -> 0 | H74: (C)
B76: Coûts d’utilisation annuels
B77: Réparations | D77: pourcentage à allouer pour les réparations annuelles x prix d’achat | E77: =(E60*E64/100) -> 0 | F77: =IFERROR(E77/$E$61,0) -> 0 | G77: =IFERROR(E77/($E$61*$C$15),0) -> 0
B78: Coûts d’utilisation totaux | E78: =SUM(E76:E77) -> 0 | F78: 0 | G78: =IFERROR(E78/($E$61*$C$15),0) -> 0 | H78: (D)
B79: Coûts totaux | E79: =SUM(E78,E74) -> 0 | F79: 0 | G79: =IFERROR(E79/($E$61*$C$15),0) -> 0
B80: = COÛTS ANNUELS DU MATÉRIEL (A + B + C + D) | E80: =SUM(E79,E35,E57) -> 139801.4246 | F80: =F79+F57+F35 -> 681.5913263 | G80: =G79+G57+G35 -> 66.82267905 | H80: (E)
B81: Rémunération de la gestion, frais d'administration | C81: =E8 -> 0.15 | D81: Rémunération de conducteur (entrepreneur ou salarié) | E81: =E7 -> 27
D82: Allocation de travail pour le déplacement des machines et temps morts | E82: 0.15
E83: Totaux annuel $ | F83: $/heure | G83: $/acre
B84: + Marge bénéficiaire (rémunération de la gestion, frais d'administration) | E84: =E80*C81 -> 20970.21368 | F84: =E84/E12 -> 83.88085474 | G84: =IFERROR(E84/C12,0) -> 8.22361321 | H84: (F)
B85: + Rémunération du conducteur (entrepreneur ou salarié) | E85: =E12*E81*(1+E82) -> 7762.5 | F85: =E85/E12 -> 31.05 | G85: =IFERROR(E85/C12,0) -> 3.044117647 | H85: (G)
B86: = Coûts totaux (E+F+G) | E86: =E80+E84+E85 -> 168534.1382 | H86: (H)
B87: = Tarif | D87: $/heure | F87: =F79+F57+F35+F84+F85 -> 796.522181
D88: $/acre | G88: =IFERROR(G79+G57+G35+G84+G85,0) -> 78.0904099
B89: * La méthode de recouvrement des investissements estime les coûts annuels d’amortissement et d’intérêt. Elle regroupe
B90: tous ces coûts en un seul calcul. Pour calculer les coûts de recouvrement des investissements, le facteur lié au
B91: recouvrement des investissements est multiplié par la dépréciation totale et l’on ajoute à ce résultat la valeur de reprise
B92: multipliée par le taux d’intérêt. Le tableau 5 présente les facteurs liés au recouvrement des investissements pour des
B93: combinaisons choisies d’années et de taux d’intérêt.
B94: ** Valeur de reprise = prix d’achat – (prix d’achat x taux d’amortissement annuel [voir le tableau 3] x nombre d’années depropriété).
B95: *** Intérêt : L’intérêt annuel moyen qu’aurait rapporté le placement de l’argent (le vôtre et/ou celui du prêteur) qui est immobilisé dans la machine.
B98: Calculateur des tarifs de location d'équipement à court terme | E98: Totaux annuel $ | F98: $/heure | G98: $/acre
B99: + Coûts du matériel (voir Calcul des tarifs des travaux agricoles à forfait, ci-dessus) | E99: =E80 -> 139801.4246 | F99: =F80 -> 681.5913263 | G99: =G80 -> 66.82267905 | H99: (E)
B100: – Coût total du carburant et des lubrifiants (le cas échéant) (voir Calcul des tarifs des travaux agricoles à forfait, ci-dessus) | E100: =E32 -> 24300 | F100: =F32 -> 97.2 | G100: =G32 -> 9.529411765 | H100: (J)
B101: Rémunération de la gestion | E101: =C81 -> 0.15
B102: + Marge bénéficiaire (rémunération de la gestion, frais d'administration) on suggère de majorer de 15 % les coûts du matériel ( E – J) x 0,15 | E102: =(E99-E100)*E101 -> 17325.21368 | F102: =(F99-F100)*E101 -> 87.65869894 | G102: =(G99-G100)*E101 -> 8.593990092 | H102: (K)
B103: = Coûts totaux (E–J+K) | E103: =E99-E100+E102 -> 132826.6382 | H103: (L)
B104: = Tarif de location | D104: $/heure | F104: =F99-F100+F102 -> 672.0500252
D105: $/acre | G105: =G99-G100+G102 -> 65.88725737
B106: Remarque : Les loueurs peuvent appliquer des tarifs journaliers ou hebdomadaires minimums.
B109: fin de la feuille de calcul

Sheet Tableaux
B1: Tableaux 4 et 5 voir la droite
B3: Tableau 3, Heures d’utilisation annuelles, vie utile optimale, amortissement et pourcentage à allouer pour les réparations | H3: Tableau 4. Facteurs liés au recouvrement des investissements | X3: TABLEAU 5. Besoins relatifs au rendement, à la puissance motrice et au carburant pour certaines machines agricoles
B4: Machine | C4: Utilisation annuelle (heures) | D4: Vie utile optimale (années) | E4: Taux d’amortissement annuel (% du prix d’achat) | F4: Pourcentage à allouer pour les réparations annuelles (% du prix d’achat) | I4: Taux d’intérêt | Y4: Puissance nominale du moteur en CV(1,2) | Z4: Acres/heure(2) | AA4: Litres/acre | AB4: Litres/heure(3)
B5: Tracteurs 2RM | C5: 300 | D5: 20 | E5: 3.3 | F5: 2.31 | H5: Année | I5: 0.02 | J5: 0.03 | K5: 0.04 | L5: 0.05 | M5: 0.06 | N5: 0.07 | O5: 0.08 | P5: 0.09 | Q5: 0.1 | R5: 0.11 | S5: 0.12 | T5: 0.13 | U5: 0.14 | V5: 0.15 | X5: Charrue à 4 socs 18 pouces | Y5: 85 | Z5: 2.8 | AA5: 5.828571429 | AB5: 16.32
B6: Tracteurs avec assistance roues avant | C6: 450 | D6: 15 | E6: 4.4 | F6: 2.73 | H6: 1 | I6: 1.02 | J6: 1.03 | K6: 1.04 | L6: 1.05 | M6: 1.06 | N6: 1.07 | O6: 1.08 | P6: 1.09 | Q6: 1.1 | R6: 1.11 | S6: 1.12 | T6: 1.13 | U6: 1.14 | V6: 1.15 | X6: Charrue à 6 socs 18 pouces | Y6: 160 | Z6: 3 | AA6: 10.24 | AB6: 30.72
B7: Tracteurs 4RM | C7: 450 | D7: 15 | E7: 4.4 | F7: 2.63 | H7: 2 | I7: 0.515 | J7: 0.523 | K7: 0.53 | L7: 0.538 | M7: 0.545 | N7: 0.553 | O7: 0.561 | P7: 0.568 | Q7: 0.576 | R7: 0.584 | S7: 0.592 | T7: 0.599 | U7: 0.607 | V7: 0.615 | X7: Charrue à 8 socs 18 pouces | Y7: 285 | Z7: 5.6 | AA7: 9.771428571 | AB7: 54.72
B8: Tracteurs à chenilles | C8: 450 | D8: 15 | E8: 4.4 | F8: 3.36 | H8: 3 | I8: 0.347 | J8: 0.354 | K8: 0.36 | L8: 0.367 | M8: 0.374 | N8: 0.381 | O8: 0.388 | P8: 0.395 | Q8: 0.402 | R8: 0.409 | S8: 0.416 | T8: 0.424 | U8: 0.431 | V8: 0.438 | X8: Cultivateur de 24 pieds | Y8: 160 | Z8: 9 | AA8: 3.413333333 | AB8: 30.72
B9: Moissonneuses-batteuses automotrices | C9: 250 | D9: 12 | E9: 5.6 | F9: 2.63 | H9: 4 | I9: 0.263 | J9: 0.269 | K9: 0.275 | L9: 0.282 | M9: 0.289 | N9: 0.295 | O9: 0.302 | P9: 0.309 | Q9: 0.315 | R9: 0.322 | S9: 0.329 | T9: 0.336 | U9: 0.343 | V9: 0.35 | X9: Cultivateur de 31 pieds | Y9: 255 | Z9: 20.6 | AA9: 2.376699029 | AB9: 48.96
B10: Têtes à rigide | C10: 250 | D10: 20 | E10: 3.3 | F10: 2.1 | H10: 5 | I10: 0.212 | J10: 0.218 | K10: 0.225 | L10: 0.231 | M10: 0.237 | N10: 0.244 | O10: 0.25 | P10: 0.257 | Q10: 0.264 | R10: 0.271 | S10: 0.277 | T10: 0.284 | U10: 0.291 | V10: 0.298 | X10: Cultivateur de 44 pieds | Y10: 305 | Z10: 29.1 | AA10: 2.012371134 | AB10: 58.56
B11: Têtes à ramasseur | C11: 250 | D11: 20 | E11: 3.3 | F11: 1.58 | H11: 6 | I11: 0.179 | J11: 0.185 | K11: 0.191 | L11: 0.197 | M11: 0.203 | N11: 0.21 | O11: 0.216 | P11: 0.223 | Q11: 0.23 | R11: 0.236 | S11: 0.243 | T11: 0.25 | U11: 0.257 | V11: 0.264 | X11: Charrue chisel de 16 pieds | Y11: 175 | Z11: 9 | AA11: 3.733333333 | AB11: 33.6
B12: Têtes à flexible | C12: 250 | D12: 15 | E12: 4.4 | F12: 2.63 | H12: 7 | I12: 0.155 | J12: 0.161 | K12: 0.167 | L12: 0.173 | M12: 0.179 | N12: 0.186 | O12: 0.192 | P12: 0.199 | Q12: 0.205 | R12: 0.212 | S12: 0.219 | T12: 0.226 | U12: 0.233 | V12: 0.24 | X12: Charrue chisel de 21 pieds | Y12: 275 | Z12: 12.6 | AA12: 4.19047619 | AB12: 52.8
B13: Têtes à tapis | C13: 250 | D13: 15 | E13: 4.4 | F13: 2.94 | H13: 8 | I13: 0.137 | J13: 0.142 | K13: 0.149 | L13: 0.155 | M13: 0.161 | N13: 0.167 | O13: 0.174 | P13: 0.181 | Q13: 0.187 | R13: 0.194 | S13: 0.201 | T13: 0.208 | U13: 0.216 | V13: 0.223 | X13: Pulvériseur tandem de 24 pieds | Y13: 170 | Z13: 15.1 | AA13: 2.161589404 | AB13: 32.64
B14: Têtes à maïs | C14: 100 | D14: 15 | E14: 4.4 | F14: 2.94 | H14: 9 | I14: 0.123 | J14: 0.128 | K14: 0.134 | L14: 0.141 | M14: 0.147 | N14: 0.153 | O14: 0.16 | P14: 0.167 | Q14: 0.174 | R14: 0.181 | S14: 0.188 | T14: 0.195 | U14: 0.202 | V14: 0.21 | X14: Pulvériseur tandem de 30 pieds | Y14: 255 | Z14: 15.3 | AA14: 3.2 | AB14: 48.96
B15: Andainage automotrices | C15: 200 | D15: 15 | E15: 4.4 | F15: 2.1 | H15: 10 | I15: 0.111 | J15: 0.117 | K15: 0.123 | L15: 0.13 | M15: 0.136 | N15: 0.142 | O15: 0.149 | P15: 0.156 | Q15: 0.163 | R15: 0.17 | S15: 0.177 | T15: 0.184 | U15: 0.192 | V15: 0.199 | X15: Pulvériseur déporté de 10 pieds | Y15: 125 | Z15: 6 | AA15: 4 | AB15: 24
B16: Remorques à grain | C16: 250 | D16: 20 | E16: 3.3 | F16: 2.1 | H16: 11 | I16: 0.102 | J16: 0.108 | K16: 0.114 | L16: 0.12 | M16: 0.127 | N16: 0.133 | O16: 0.14 | P16: 0.147 | Q16: 0.154 | R16: 0.161 | S16: 0.168 | T16: 0.176 | U16: 0.183 | V16: 0.191 | X16: Pulvériseur déporté de 16 pieds | Y16: 175 | Z16: 9.6 | AA16: 3.5 | AB16: 33.6
B17: Tarières - (puissance) | C17: 100 | D17: 20 | E17: 3.3 | F17: 1.58 | H17: 12 | I17: 0.095 | J17: 0.1 | K17: 0.107 | L17: 0.113 | M17: 0.119 | N17: 0.126 | O17: 0.133 | P17: 0.14 | Q17: 0.147 | R17: 0.154 | S17: 0.161 | T17: 0.169 | U17: 0.177 | V17: 0.184 | X17: Machine de labour vertical de 21 pieds | Y17: 215 | Z17: 19.6 | AA17: 2.106122449 | AB17: 41.28
B18: Tarières - (prise de force) | C18: 100 | D18: 20 | E18: 3.3 | F18: 1.58 | H18: 13 | I18: 0.088 | J18: 0.094 | K18: 0.1 | L18: 0.106 | M18: 0.113 | N18: 0.12 | O18: 0.127 | P18: 0.134 | Q18: 0.141 | R18: 0.148 | S18: 0.156 | T18: 0.163 | U18: 0.171 | V18: 0.179 | X18: Machine de labour vertical de 30 pieds | Y18: 305 | Z18: 27.2 | AA18: 2.152941176 | AB18: 58.56
B19: Aspirateur à grains | C19: 50 | D19: 15 | E19: 4.4 | F19: 2.1 | H19: 14 | I19: 0.083 | J19: 0.089 | K19: 0.095 | L19: 0.101 | M19: 0.108 | N19: 0.114 | O19: 0.121 | P19: 0.128 | Q19: 0.136 | R19: 0.143 | S19: 0.151 | T19: 0.159 | U19: 0.167 | V19: 0.175 | X19: Machine de labour vertical de 43 pieds | Y19: 420 | Z19: 39.2 | AA19: 2.057142857 | AB19: 80.64
B20: Récolteuses-hacheuses automotrices | C20: 400 | D20: 10 | E20: 6.7 | F20: 8.4 | H20: 15 | I20: 0.078 | J20: 0.084 | K20: 0.09 | L20: 0.096 | M20: 0.103 | N20: 0.11 | O20: 0.117 | P20: 0.124 | Q20: 0.131 | R20: 0.139 | S20: 0.147 | T20: 0.155 | U20: 0.163 | V20: 0.171 | X20: Machine de labour en bandes à 12 rangs | Y20: 330 | Z20: 17.5 | AA20: 3.620571429 | AB20: 63.36
B21: Récolteuses-hacheuses automotrices - Têtes | C21: 400 | D21: 10 | E21: 6.7 | F21: 8.4 | H21: 16 | I21: 0.074 | J21: 0.08 | K21: 0.086 | L21: 0.092 | M21: 0.099 | N21: 0.106 | O21: 0.113 | P21: 0.12 | Q21: 0.128 | R21: 0.136 | S21: 0.143 | T21: 0.151 | U21: 0.16 | V21: 0.168 | X21: Semoir en ligne à 6 rangs de 30 pouces | Y21: 110 | Z21: 7.6 | AA21: 2.778947368 | AB21: 21.12
B22: Faucheuse-conditionneuse automotrices | C22: 150 | D22: 15 | E22: 4.4 | F22: 3.36 | H22: 17 | I22: 0.07 | J22: 0.076 | K22: 0.082 | L22: 0.089 | M22: 0.095 | N22: 0.102 | O22: 0.11 | P22: 0.117 | Q22: 0.125 | R22: 0.132 | S22: 0.14 | T22: 0.149 | U22: 0.157 | V22: 0.165 | X22: Semoir en ligne à 12 rangs de 30 pouces | Y22: 160 | Z22: 15.3 | AA22: 2.007843137 | AB22: 30.72
B23: Faucheuse-conditionneuse (faucille) traîné | C23: 150 | D23: 15 | E23: 4.4 | F23: 2.1 | H23: 18 | I23: 0.067 | J23: 0.073 | K23: 0.079 | L23: 0.086 | M23: 0.092 | N23: 0.099 | O23: 0.107 | P23: 0.114 | Q23: 0.122 | R23: 0.13 | S23: 0.138 | T23: 0.146 | U23: 0.155 | V23: 0.163 | X23: Semoir en ligne à 16 rangs de 30 pouces | Y23: 175 | Z23: 20.4 | AA23: 1.647058824 | AB23: 33.6
B24: Faucheuse-conditionneuse (disque) traîné | C24: 150 | D24: 15 | E24: 4.4 | F24: 2.63 | H24: 19 | I24: 0.064 | J24: 0.07 | K24: 0.076 | L24: 0.083 | M24: 0.09 | N24: 0.097 | O24: 0.104 | P24: 0.112 | Q24: 0.12 | R24: 0.128 | S24: 0.136 | T24: 0.144 | U24: 0.153 | V24: 0.161 | X24: Semoir-distributeur à 6 rangs de 30 pouces | Y24: 85 | Z24: 6.4 | AA24: 2.55 | AB24: 16.32
B25: Râteau à foin (roue) | C25: 50 | D25: 20 | E25: 3.3 | F25: 2 | H25: 20 | I25: 0.061 | J25: 0.067 | K25: 0.074 | L25: 0.08 | M25: 0.087 | N25: 0.094 | O25: 0.102 | P25: 0.11 | Q25: 0.117 | R25: 0.126 | S25: 0.134 | T25: 0.142 | U25: 0.151 | V25: 0.16 | X25: Semoir-distributeur à 12 rangs de 30 pouces | Y25: 175 | Z25: 15.3 | AA25: 2.196078431 | AB25: 33.6
B26: Presses à balles rondes | C26: 100 | D26: 15 | E26: 4.4 | F26: 1.58 | X26: Semoir-distributeur à 16 rangs de 30 pouces | Y26: 255 | Z26: 20.4 | AA26: 2.4 | AB26: 48.96
B27: Presses à grosses balles carrées | C27: 150 | D27: 15 | E27: 4.4 | F27: 1.79 | X27: Semoir à céréales de 25 pieds | Y27: 160 | Z27: 11.7 | AA27: 2.625641026 | AB27: 30.72
B28: Presses à petites balles carrées | C28: 100 | D28: 20 | E28: 3.3 | F28: 1.05 | H28: Tracteur exemple, Tableau 3 et 4: | X28: Semoir à céréales de 35 pieds | Y28: 255 | Z28: 16.3 | AA28: 3.003680982 | AB28: 48.96
B29: Transporteur de balles rondes - traîné | C29: 100 | D29: 15 | E29: 4.4 | F29: 2.63 | I29: Tracteur à 4 roues motrices de 310 chevauxvapeur (CV) | X29: Semoir à roues plombeuses, 12 pieds | Y29: 85 | Z29: 5.1 | AA29: 3.2 | AB29: 16.32
B30: Transporteur de grosses balles carrées - traîné | C30: 200 | D30: 20 | E30: 3.3 | F30: 2.1 | H30: Prix d’achat | I30: 470 000$ | X30: Semoir à roues plombeuses, 20 pieds | Y30: 160 | Z30: 8.5 | AA30: 3.614117647 | AB30: 30.72
B31: Transporteur automoteur de petites balles carrées | C31: 150 | D31: 15 | E31: 4.4 | F31: 2.63 | H31: Utilisation prévue | I31: 450 h par an pendant 5 ans | X31: Semoir (semis direct), 15 pieds | Y31: 160 | Z31: 7 | AA31: 4.388571429 | AB31: 30.72
B32: Foreuse pneumatique (ouvreurs indépendants) | C32: 200 | D32: 15 | E32: 4.4 | F32: 3.68 | H32: Amortissement | I32: Amortissement total estimatif sur 5 ans | X32: Semoir (semis direct), 20 pieds | Y32: 200 | Z32: 9.3 | AA32: 4.129032258 | AB32: 38.4
B33: Foreuse pneumatique (houe) | C33: 200 | D33: 15 | E33: 4.4 | F33: 3.15 | I33: = taux d’amortissement annuel de 4,4 % (tableau 3,tracteurs à 4 roues motrices) x 5 ans x 470 000$ = 103 400$ amortissement total | X33: Pulvérisateur de 90 pieds, tracté | Y33: 110 | Z33: 49.6 | AA33: 0.4258064516 | AB33: 21.12
B34: Foreuse pneumatique (disque) | C34: 200 | D34: 15 | E34: 4.4 | F34: 3.15 | H34: Valeur de reprise | I34: = 470 000 $ (prix d’achat) – 103 400 $ (amortissement total) = 366 600 $ | X34: Pulvérisateur de 90 pieds, automoteur | Y34: 95 | Z34: 72.5 | AA34: 0.2515862069 | AB34: 16.3
B35: Semoir pneumatique | C35: 200 | D35: 15 | E35: 4.4 | F35: 3.15 | X35: Faucheuse-conditionneuse de 9 pieds | Y35: 45 | Z35: 4.4 | AA35: 1.963636364 | AB35: 8.64
B36: Semoir pour cultures en rangs | C36: 100 | D36: 10 | E36: 6.7 | F36: 4.2 | H36: Recouvrement du capital | X36: Faucheuse-conditionneuse rotative de 13 pieds | Y36: 85 | Z36: 9.7 | AA36: 1.682474227 | AB36: 16.32
B37: Charrues | C37: 100 | D37: 20 | E37: 3.3 | F37: 3.68 | I37: = (amortissement total x facteur de recouvrement du capital) + (valeur de reprise x taux d’intérêt) | X37: Presse à balles carrées | Y37: 45 | Z37: 4.4 | AA37: 1.963636364 | AB37: 8.64
B38: Disques | C38: 100 | D38: 20 | E38: 3.3 | F38: 1.58 | I38: = (103 400 $ x 0,218 (du tableau 4, 3 % d’intérêt sur 5 ans)) + (366 600 $ x 3 %) | X38: Presse à balles rondes de 1000 lb | Y38: 70 | Z38: 3 | AA38: 4.48 | AB38: 13.44
B39: Cultivateurs | C39: 200 | D39: 20 | E39: 3.3 | F39: 1.58 | I39: = 22 541 $ + 10 998 $ | X39: Presse à balles rondes de 1500 lb | Y39: 70 | Z39: 4 | AA39: 3.36 | AB39: 13.44
B40: Herses standards | C40: 75 | D40: 25 | E40: 2.7 | F40: 1.26 | I40: = recouvrement du capital de 33 539 $ par an (amortissement et frais d’intérêt). | X40: Presse à grosses balles carrées | Y40: 160 | Z40: 16.3 | AA40: 1.884662577 | AB40: 30.72
B41: Herses lourdes | C41: 100 | D41: 20 | E41: 3.3 | F41: 1.58 | X41: Presse à balles rondes de 1000 lb/enrubanneuse | Y41: 70 | Z41: 3 | AA41: 4.48 | AB41: 13.44
B42: Herses de tasseurs | C42: 200 | D42: 25 | E42: 2.7 | F42: 0.53 | X42: Récolteuse-hacheuse à 2 rangs | Y42: 160 | Z42: 1.4 | AA42: 21.94285714 | AB42: 30.72
B43: Machines de labour vertical | C43: 100 | D43: 20 | E43: 3.3 | F43: 3.68 | X43: Récolteuse-hacheuse automotrice à 6 rangs de 15 pieds | Y43: 625 | Z43: 5.1 | AA43: 20.6 | AB43: 105
B44: Rouleau | C44: 75 | D44: 20 | E44: 3.3 | F44: 1.05 | X44: Grosse souffleuse à fourrage | Y44: 70 | Z44: — | AA44: — | AB44: 13.44
B45: Décapeuses | C45: 80 | D45: 10 | E45: 6.7 | F45: 2.63 | X45: Moissonneuse-batteuse à maïs, 6 becs cueilleurs–30 po | Y45: 275 | Z45: 5.1 | AA45: 11.85882353 | AB45: 52.8
B46: Pulvérisateurs enjambeurs automoteurs | C46: 175 | D46: 8 | E46: 8.3 | F46: 3.68 | X46: Moissonneuse-batteuse à maïs, 12 becs cueilleurs–30 po | Y46: 375 | Z46: 10.2 | AA46: 8 | AB46: 72
B47: Enfonce-pieux | C47: 40 | D47: 20 | E47: 3.3 | F47: 2.1 | X47: Moissonneuse-batteuse à céréales, 25 pieds | Y47: 375 | Z47: 7.4 | AA47: 11.02702703 | AB47: 72
B48: Mélangeur d'aliments vertical | C48: 200 | D48: 15 | E48: 4.4 | F48: 2.63 | X48: Moissonneuse-batteuse à céréales, 35 pieds | Y48: 375 | Z48: 10.4 | AA48: 7.846153846 | AB48: 72
B49: Mélangeur-broyeur et mélangeur d'aliments | C49: 200 | D49: 15 | E49: 4.4 | F49: 3.15 | X49: 1. Multipliez le nombre de CV du moteur par 0,88 pour obtenir la prise de force (PTO) en CV.
B50: Broyeur de balles | C50: 200 | D50: 15 | E50: 4.4 | F50: 3.15 | X50: 2. Illinois Machinery Cost Estimates for 2023, Université de l’Illinois, Département de l’économie de l’agriculture et de la consommation, 2023.
B51: Épandeurs de fumier | C51: 100 | D51: 10 | E51: 6.7 | F51: 4.62 | X51: 3. Nebraska Tractor Test Laboratory. Tractor fuel consumption results, 2018–2024.
B52: Source : Farm Machinery Custom and Rental Rate Guide, ministère de l’Agriculture de la Saskatchewan, 2024-2025.
X54: fin de la feuille de calcul
B57: EXEMPLE | C57: CALCUL DES COÛTS DE RÉPARATION ANNUELS
B58: Coût d’une moissonneuse-batteuse 375 HP neuve | C58: 820 000$ = 740 000$ (moissonneuse-batteuse) + 170 000$ ( tête à maïs)
B59: Pourcentages estimatifs à allouer pour les réparations* | C59: 2.63% moissonneuse-batteuse
C60: 2.94% tête à maïs
B62: Coûts de réparation annuels | C62: Moissonneuse-batteuse: 740 000$ x 2.63%soit une moyenne de 19 462$ par année
C63: Tête à maïs: 170 000$ x 2.94% soit une moyenne de 4 998$ par année
C65: Total des coûts de réparation annuels = 19 462$ + 4 998$ = 24 460$ par année
B66: Machine d’occasion | C66: Pour calculer l’amortissement d’une machine d’occasion, on soustrait
C67: du prix réellement payé pour acheter la machine la valeur prévue
C68: de reprise ou de récupération et on divise le résultat par la vie
C69: utile prévue dans l’exploitation. Le pourcentage à allouer pour les
C70: réparations doit être augmenté en fonction de l’âge de la machine
C71: ou du nombre d’heures qu’elle a déjà effectué. Il faut s’attendre
C72: à dépenser plus que la normale pendant l’année qui suit l’achat
C73: d’une machine d’occasion à cause des réparations supplémentaires
C74: nécessaires pour remettre celle-ci en parfait état de marche.
B76: fin de la feuille de calcul

Sheet Fiche technique
A1: GUIDE DES TRAVAUX AGRICOLES A FORFAIT ET DE LA LOCATION DE MATÉRIEL
A2: par John Molenhuis
A3: chargé de programme, analyse des activités commerciales et des coûts de production
A5: Ministère de l’Agriculture, de l’Alimentation et de l’Agroentreprise
A7: Cette fiche technique contient les tarifs perçus en 2024 pour les travaux agricoles à forfait et un guide pour vous aider à calculer des contrats de travail à forfait.
A9: https://www.ontario.ca/fr/page/cout-de-production-des-cultures-et-du-betail
A11: fin de la feuille de calcul

Sheet tarifs2024
A1: Enquête sur les tarifs perçus en 2024 pour les
A2: travaux agricoles à forfait
A3: J. Molenhuis - MAAAO - Analyse des activités commerciales et des coûts de production
A4: Ficheinfo | N4: mars 2025
A5: Détails de l'enquête
A6: Résultats de l'enquête sur les tarifs perçus en 2024 pour les travaux agricoles à forfait résume les résultats d'une étude effectuée
A7: en Ontario auprès de 200 entrepreneurs en travaux agricoles. Les résultats ont été synthétisés à l'échelle provinciale et également
A8: à l'échelle de régions. En raison du nombre insuffisant de réponses reçues de la région 6, les résultats pour cette région ne sont pas publiés.
A9: Ils ont été assortis, chaque fois que possible, du tarif provincial moyen qui avait été observé lors de l'enquête de 2021,
A10: la dernière à avoir été faite avant celle de 2024.
A11: Tarifs moyens
A12: Un tarif moyen est fourni chaque fois qu'au moins trois entrepreneurs ont répondu à l'enquête. Plus le nombre d'entrepreneurs
A13: ayant indiqué un tarif est élevé, plus le sommaire traduit fidèlement les tarifs du marché.
A14: La colonne Nbre indique le nombre de réponses reçues pour l'opération.
A15: Qu'est-ce que les percentiles et à quoi servent-ils?
A16: Les percentiles servent à montrer l'étendue de la fourchette à l'intérieur de laquelle varient la plupart des tarifs. Par exemple, dans
A17: le sommaire provincial, le 15e percentile pour le moissonnage-battage du maïs est de 54 $/acre et le
A18: 85e percentile, de 75 $/acre. Cela signifie que 15 % des entrepreneurs ayant répondu demandaient 54 $/acre ou moins et que 15 %
A19: demandaient plus de 75 $. Soixante-dix pour cent (85e - 15e percentiles) des répondants demandaient entre 54 $ et 75 $/acre. Le
A20: tarif moyen était donc de 65 $/acre.
A22: Régions
A23: Région 1
A24: Chatham-Kent, Elgin, Essex, Lambton, Middlesex
A25: Région 2
A26: Brant, Haldimand, Hamilton, Niagara, Norfolk, Oxford
A27: Région 3
A28: Bruce, Dufferin, Grey, Halton, Huron, Peel, Perth, Simcoe, Waterloo, Wellington
A29: Région 4
A30: Durham, Haliburton, Hastings, Kawartha Lakes, Muskoka, Northumberland, Parry Sound, Peterborough, Prince Edward, York
A31: Région 5
A32: Frontenac, Lanark, Leeds-Grenville, Lennox-Addington, Ottawa, Prescott-Russell, Renfrew, Stormont-Dundas-Glengarry
A33: Région 6
A34: Algoma, Cochrane, Kenora, Manitoulin, Nipissing, Rainy River, Sudbury, Thunder Bay, Timiskaming
B35: Unité | C35: Nombre de réponses | D35: Provincialmoyenne 2024 ($/unité) | E35: Provincial 2024 percentile 15e ($/unité) | F35: Provincial2024 percentile85e ($/unité) | G35: Provincialmoyenne 2021 ($/unité) | H35: Région 1 nombre de réponses | I35: Région 1 2024 moyenne ($/unité) | J35: Région 2 nombre de réponses | K35: Région 2 2024 moyenne ($/unité) | L35: Région 3 nombre de réponses | M35: Région 3 2024 moyenne ($/unité) | N35: Région 4 nombre de réponses | O35: Région 4 2024 moyenne ($/unité) | P35: Région 5 nombre de réponses | Q35: Région 5 2024 moyenne ($/unité)
A36: TRAVAIL DU SOL
A37: Charrue à socs – sillon fixe | B37: acre | C37: 14 | D37: 37.57142857 | E37: 29.75 | F37: 44.3 | G37: 36.69444444 | H37: 5 | I37: 40.2 | L37: 7 | M37: 33.28571429
A38: Charrue à socs – roulante | B38: acre | C38: 4 | D38: 39.5 | G38: 38.25
A39: Charrue à socs – roulante | B39: heure | C39: 4 | D39: 136.25 | L39: 3 | M39: 123.3333333
A40: Charrue à socs – largeur variable | B40: acre | C40: 7 | D40: 40.42857143 | G40: 33.69444444 | L40: 5 | M40: 40.6
A41: Charrue à socs – largeur variable | B41: heure | C41: 3 | D41: 203.3333333 | G41: 91.66666667 | L41: 3 | M41: 203.3333333
A42: Charrue chisel/déchaumeuse | B42: acre | C42: 48 | D42: 33.78125 | E42: 25 | F42: 41.9 | G42: 28.68103448 | H42: 10 | I42: 39 | J42: 12 | K42: 34 | L42: 19 | M42: 29.97368421 | P42: 7 | Q42: 36.28571429
A43: Charrue chisel/déchaumeuse | B43: heure | C43: 4 | D43: 225 | G43: 230.5 | L43: 3 | M43: 233.3333333
A44: Charrue Fauchage à disques - labourage | B44: acre | C44: 40 | D44: 27.9625 | E44: 22.55 | F44: 35 | G44: 24.46875 | H44: 10 | I44: 25.3 | J44: 7 | K44: 28 | L44: 14 | M44: 27.64285714 | P44: 7 | Q44: 30.07142857
A45: Charrue Fauchage à disques - travail supplémentaire du sol | B45: acre | C45: 25 | D45: 27.24 | E45: 19.2 | F45: 35 | G45: 22.75 | H45: 4 | I45: 23.75 | J45: 6 | K45: 24.75 | L45: 8 | M45: 27.5 | P45: 5 | Q45: 28.7
A46: Disc - grande vitesse | B46: acre | C46: 54 | D46: 30.00925926 | E46: 25 | F46: 35 | G46: 23.94078947 | H46: 13 | I46: 28.46153846 | J46: 8 | K46: 31.4375 | L46: 22 | M46: 29.72727273 | N46: 3 | O46: 30.33333333 | P46: 7 | Q46: 32.71428571
A47: Travail du sol - vertical | B47: acre | C47: 47 | D47: 27.95744681 | E47: 23.8 | F47: 35 | G47: 23.61403509 | H47: 15 | I47: 26.4 | J47: 9 | K47: 28.33333333 | L47: 15 | M47: 27.53333333 | N47: 3 | O47: 33.33333333 | P47: 5 | Q47: 30
A48: Travail du sol en bandes | B48: acre | C48: 9 | D48: 39.33333333 | E48: 30 | F48: 43.6 | G48: 29.4 | L48: 6 | M48: 34.16666667
A49: Labour avec disque en V | B49: acre | C49: 10 | D49: 37.35 | E49: 30.45 | F49: 42.6 | G49: 37.57142857 | H49: 6 | I49: 36.83333333
A50: Cultivateur | B50: acre | C50: 86 | D50: 23.25581395 | E50: 16.5 | F50: 30 | G50: 18.14418605 | H50: 18 | I50: 24.19444444 | J50: 21 | K50: 22.71428571 | L50: 33 | M50: 20.78787879 | N50: 3 | O50: 25 | P50: 11 | Q50: 29.68181818
A51: Cultivateur | B51: heure | C51: 5 | D51: 182 | G51: 265.8888889 | L51: 4 | M51: 190
A52: Hersage | B52: acre | C52: 5 | D52: 17 | G52: 12.6 | L52: 4 | M52: 15
A53: Travail profond/sous-soleuse | B53: acre | C53: 18 | D53: 39.96296296 | E53: 35 | F53: 50 | G53: 30.25 | H53: 8 | I53: 40.91666667 | L53: 6 | M53: 35.33333333 | P53: 3 | Q53: 48.33333333
A54: Herse de finition | B54: acre | C54: 3 | D54: 29.33333333 | G54: 21.14285714 | H54: 3 | I54: 29.33333333
A55: Rouleau | B55: acre | C55: 56 | D55: 10.69642857 | E55: 6.25 | F55: 14 | G55: 9.080909091 | H55: 6 | I55: 10.5 | J55: 10 | K55: 11.125 | L55: 29 | M55: 9.99137931 | N55: 3 | O55: 12 | P55: 8 | Q55: 12.375
A56: Rouleau | B56: heure | C56: 3 | D56: 150 | G56: 193.3333333
A57: Récolte en tiges | B57: acre | C57: 3 | D57: 24.66666667 | G57: 27 | H57: 3 | I57: 24.66666667
A58: SEMIS - SOYA
A59: Semoir en lignes standard -15/20 pouce | B59: acre | C59: 47 | D59: 32.10638298 | E59: 28 | F59: 37 | G59: 26.7452381 | H59: 19 | I59: 31 | J59: 14 | K59: 32.14285714 | L59: 12 | M59: 33.75
A60: Semoir en lignes standard - 30 pouce | B60: acre | C60: 25 | D60: 33.24 | E60: 28 | F60: 40 | G60: 26.37894737 | H60: 6 | I60: 30.16666667 | L60: 10 | M60: 31.8 | P60: 6 | Q60: 36.16666667
A61: Travail minimum/semis direct - 15/20 pouce | B61: acre | C61: 54 | D61: 32.01851852 | E61: 26.9 | F61: 37 | G61: 27.87179487 | H61: 15 | I61: 31.4 | J61: 12 | K61: 31.25 | L61: 21 | M61: 31.80952381 | P61: 6 | Q61: 36.16666667
A62: Travail minimum/semis direct - 30 pouce | B62: acre | C62: 10 | D62: 34.8 | E62: 32.35 | F62: 36.65 | G62: 28.07142857 | L62: 6 | M62: 34.33333333 | N62: 3 | O62: 36.66666667 | P62: 3 | Q62: 35
A63: Semoir pour travail en bandes – 30 pouce | B63: acre | C63: 3 | D63: 35
A64: Semoir de précision standard | B64: acre | C64: 14 | D64: 31.14285714 | E64: 24.85 | F64: 37.05 | G64: 22.8 | J64: 3 | K64: 28.33333333 | L64: 9 | M64: 31
A65: Semis direct | B65: acre | C65: 54 | D65: 32.53703704 | E65: 27.95 | F65: 36.025 | G65: 27.5326087 | H65: 9 | I65: 30.44444444 | J65: 9 | K65: 32.61111111 | L65: 22 | M65: 31.65909091
A66: Semoir pneumatique | B66: acre | C66: 56 | D66: 32.89642857 | E66: 28 | F66: 36.875 | G66: 26.34042553 | H66: 6 | I66: 30.83333333 | J66: 11 | K66: 33.40909091 | L66: 28 | M66: 31.775 | N66: 9 | O66: 35.55555556 | P66: 5 | Q66: 34.6
A67: SEMIS - MAÏS
A68: Semoir en lignes standard - 15/20 pouce | B68: acre | C68: 6 | D68: 34.25 | G68: 30.125
A69: Semoir en lignes standard - 30 pouce | B69: acre | C69: 92 | D69: 32.74728261 | E69: 28 | F69: 39.35 | G69: 26.60240964 | H69: 18 | I69: 31.66666667 | J69: 19 | K69: 32.26315789 | L69: 39 | M69: 32.12179487 | N69: 5 | O69: 41 | P69: 11 | Q69: 33.81818182
A70: Travail minimum/semis direct - 15/20 pouce | B70: acre | C70: 4 | D70: 32.75 | G70: 29.25
A71: Travail minimum/semis direct - 30 pouce | B71: acre | C71: 50 | D71: 34.14 | E71: 28 | F71: 40 | G71: 28.40789474 | H71: 8 | I71: 30.125 | J71: 9 | K71: 33.66666667 | L71: 22 | M71: 32.75 | N71: 6 | O71: 40.75 | P71: 4 | Q71: 40.75
A72: Semoir pour travail en bandes – 30 pouce | B72: acre | C72: 7 | D72: 41.71428571 | G72: 26.67692308 | H72: 3 | I72: 46
A73: Semis direct | B73: acre | C73: 4 | D73: 32.5 | G73: 33.33333333
A74: Semoir pneumatique | B74: acre | C74: 4 | D74: 32.75
A75: SEMIS - CÉRÉALES (AVOINE, ORGE, BLÉ)
A76: Semoir de précision standard | B76: acre | C76: 23 | D76: 32.30434783 | E76: 25 | F76: 37.4 | G76: 22.43181818 | H76: 4 | I76: 30.75 | J76: 7 | K76: 31.71428571 | L76: 10 | M76: 31
A77: Semis direct | B77: acre | C77: 44 | D77: 32.15909091 | E77: 25.9 | F77: 36.55 | G77: 26.99038462 | H77: 9 | I77: 29.33333333 | J77: 6 | K77: 29.83333333 | L77: 20 | M77: 31.575 | N77: 7 | O77: 38.07142857
A78: Semoir pneumatique | B78: acre | C78: 54 | D78: 33.22037037 | E78: 29.9 | F78: 36.025 | G78: 26.43902439 | H78: 7 | I78: 31.57142857 | J78: 12 | K78: 34.17916667 | L78: 26 | M78: 33.02884615 | P78: 6 | Q78: 34.16666667
A79: SEMIS - CULTURES FOURRAGÈRES
A80: Semoir – un réservoir | B80: acre | C80: 11 | D80: 29.54545455 | E80: 23.5 | F80: 35 | G80: 24.2 | J80: 4 | K80: 30.5 | L80: 3 | M80: 28.33333333
A81: Semoir – Plusieurs produits | B81: acre | C81: 10 | D81: 34.7 | E81: 30.45 | F81: 38 | G81: 27.57 | J81: 3 | K81: 34.33333333 | L81: 4 | M81: 34
A82: Épandage centrifuge/VTT | B82: acre | C82: 10 | D82: 9.5 | E82: 6.175 | F82: 10 | G82: 5.816666667 | J82: 3 | K82: 8.166666667 | L82: 5 | M82: 11.2
A83: Ensemencement en sol gelé | B83: acre | C83: 4 | D83: 12.5 | L83: 3 | M83: 13.33333333
A84: Ensemencement de cultures de couverture | B84: acre | C84: 21 | D84: 30.54761905 | E84: 20 | F84: 40 | G84: 23.15384615 | H84: 3 | I84: 30.33333333 | J84: 5 | K84: 32.2 | L84: 7 | M84: 28.14285714 | N84: 3 | O84: 27.83333333 | P84: 3 | Q84: 36.33333333
A85: LUTTE CONTRE LES MAUVAISES HERBES (coût de l'herbicide non inclus)
A86: Pulvérisateur traîné | B86: acre | C86: 17 | D86: 13.23529412 | E86: 10 | F86: 15 | G86: 10.95238095 | H86: 3 | I86: 14 | J86: 3 | K86: 13 | L86: 6 | M86: 11.83333333
A87: Automoteur | B87: acre | C87: 70 | D87: 13.595 | E87: 12 | F87: 15 | G87: 10.96326531 | H87: 16 | I87: 13.903125 | J87: 16 | K87: 13.15625 | L87: 24 | M87: 13.09375 | N87: 4 | O87: 16.125 | P87: 9 | Q87: 14.43888889
A88: Pulvérisateur enjambeur automoteur | B88: acre | C88: 58 | D88: 14.32241379 | E88: 12 | F88: 16 | G88: 10.90625 | H88: 16 | I88: 13.496875 | J88: 10 | K88: 16.65 | L88: 26 | M88: 14.02884615 | N88: 3 | O88: 15.16666667
A89: Pulvérisation du maïs au stade panicule (grand volume d’eau) | B89: acre | C89: 32 | D89: 16.44375 | E89: 14 | F89: 18.7 | G89: 13.68541667 | H89: 8 | I89: 15.99375 | J89: 5 | K89: 17.2 | L89: 15 | M89: 16.28333333
A90: ÉPANDAGE D'ENGRAIS
A91: Épandage d’engrais sec | B91: acre | C91: 44 | D91: 13.25454545 | E91: 10.6125 | F91: 15 | G91: 10.408 | H91: 10 | I91: 13.095 | J91: 10 | K91: 13.55 | L91: 15 | M91: 13.85 | N91: 4 | O91: 13 | P91: 4 | Q91: 12.25
A92: Épandage d’engrais sec - pulvérisateur enjambeur | B92: acre | C92: 8 | D92: 15.21875 | E92: 11.7625 | F92: 16.95 | G92: 11.25 | L92: 4 | M92: 16.4375
A93: Location d’un semoir à engrais sec en vrac | B93: tonne | C93: 8 | D93: 18.1875 | E93: 15 | F93: 20.95 | G93: 14 | H93: 4 | I93: 16.375 | L93: 4 | M93: 20
A94: Épandage d’engrais sec en bandes latérales | B94: acre | C94: 4 | D94: 22.375 | G94: 14.375
A95: Épandage d’engrais anhydre | B95: acre | C95: 4 | D95: 13.25 | G95: 20
A96: Épandage d’engrais Liquidee – au sol/en couverture | B96: acre | C96: 16 | D96: 15.590625 | E96: 13.2375 | F96: 19.5 | G96: 11.08333333 | H96: 6 | I96: 16.15833333 | J96: 3 | K96: 15.16666667 | L96: 3 | M96: 17 | P96: 4 | Q96: 14
A97: Épandage d’engrais Liquidee - bandes latérales | B97: acre | C97: 25 | D97: 17.48 | E97: 14 | F97: 22 | G97: 14.95238095 | H97: 13 | I97: 18.07692308 | J97: 5 | K97: 18.8 | L97: 4 | M97: 16.5 | P97: 3 | Q97: 14
A98: Épandage d’engrais Liquidee, enjambeur/application tardive | B98: acre | C98: 14 | D98: 18.07142857 | E98: 14.95 | F98: 18.35 | G98: 15.32857143 | L98: 8 | M98: 17.5
A99: SOL ET CARTOGRAPHIE
A100: Service de cartes de prescription | B100: acre | C100: 3 | D100: 4.666666667 | G100: 3.69
A101: Cartographie de l’élévation | B101: acre | C101: 3 | D101: 11
A102: Échantillonnage en grille | B102: acre | C102: 4 | D102: 8.75 | G102: 5.3125
A103: MOISSONNAGE-BATTAGE
A104: Maïs | B104: acre | C104: 87 | D104: 65 | E104: 53.8 | F104: 75 | G104: 50.61792453 | H104: 21 | I104: 63.23809524 | J104: 12 | K104: 67.08333333 | L104: 35 | M104: 66.25714286 | N104: 6 | O104: 57.33333333 | P104: 12 | Q104: 67.83333333
A105: Maïs avec becs cueilleurs à maïs | B105: acre | C105: 49 | D105: 72.83163265 | E105: 60.4 | F105: 85 | G105: 55.08928571 | H105: 5 | I105: 64.4 | J105: 15 | K105: 71.93333333 | L105: 17 | M105: 76.57352941 | P105: 10 | Q105: 71.1
A106: Soya | B106: acre | C106: 133 | D106: 64.46616541 | E106: 52 | F106: 75 | G106: 50.0248227 | H106: 33 | I106: 57.90909091 | J106: 24 | K106: 67.25 | L106: 50 | M106: 66.14 | N106: 7 | O106: 64.28571429 | P106: 18 | Q106: 69.55555556
A107: Céréales avec hacheuses | B107: acre | C107: 30 | D107: 66.26666667 | E107: 52.7 | F107: 83.25 | G107: 50.52173913 | H107: 8 | I107: 57.875 | J107: 6 | K107: 71.16666667 | L107: 12 | M107: 69.83333333
A108: Céréales sans hacheuse | B108: acre | C108: 93 | D108: 65.05376344 | E108: 53.6 | F108: 75 | G108: 49.52564103 | H108: 22 | I108: 58 | J108: 21 | K108: 68.33333333 | L108: 34 | M108: 66.23529412 | N108: 5 | O108: 69 | P108: 11 | Q108: 67.45454545
A109: Canola | B109: acre | C109: 10 | D109: 68.3 | E109: 50 | F109: 91.5 | G109: 51 | H109: 4 | I109: 58.25 | L109: 4 | M109: 86.25
A110: Benne à grain seulement | B110: acre | C110: 8 | D110: 6.875 | E110: 5 | F110: 7.95 | G110: 7.571428571 | L110: 4 | M110: 6.25
A111: Benne à grain seulement | B111: heure | C111: 7 | D111: 131.4285714 | G111: 120.2 | L111: 3 | M111: 140 | P111: 3 | Q111: 133.3333333
A112: Transport du champ au silo | B112: tonne | C112: 33 | D112: 9.218181818 | E112: 6.92 | F112: 10.2 | G112: 8.415909091 | H112: 5 | I112: 8.1 | J112: 8 | K112: 8.4125 | L112: 13 | M112: 9.123076923 | N112: 3 | O112: 12.73333333 | P112: 3 | Q112: 9.866666667
A113: Transport du champ au silo | B113: tonne impériale | C113: 33 | D113: 8.380165289 | E113: 6.290909091 | F113: 9.272727273 | G113: 7.650826446 | H113: 5 | I113: 7.363636364 | J113: 8 | K113: 7.647727273 | L113: 13 | M113: 8.293706294 | N113: 3 | O113: 11.57575758 | P113: 3 | Q113: 8.96969697
A114: Transport du champ au silo | B114: heure | C114: 8 | D114: 151.875 | E114: 85.75 | F114: 246.5 | G114: 105 | J114: 3 | K114: 120 | L114: 3 | M114: 211.6666667
A115: AUTRES TRAVAUX DE RÉCOLTE
A116: Andainage | B116: acre | C116: 3 | D116: 22.33333333 | G116: 22.33333333
A117: MAÏS GRAIN HUMIDE
A118: Moissonnage-battage et transport jusqu’au silo | B118: acre | C118: 11 | D118: 66.63636364 | E118: 55 | F118: 79 | G118: 50 | H118: 3 | I118: 54 | J118: 3 | K118: 71
A119: HARICOTS COMESTIBLES
A120: Arrachage des haricots et andainage | B120: acre | C120: 3 | D120: 48.83333333 | G120: 48
A121: Récolte avec moissonneuse-batteuse à céréales standard | B121: acre | C121: 48 | D121: 67.6875 | E121: 55.25 | F121: 80 | G121: 54.75 | H121: 8 | I121: 58.75 | J121: 10 | K121: 72 | L121: 24 | M121: 69.83333333 | N121: 4 | O121: 62.5
A122: Récolte avec moissonneuse-batteuse de type Bob/Lilliston | B122: acre | C122: 4 | D122: 85.75 | G122: 67.5
A123: TRANSPORT
A124: Céréales et oléagineux - local | B124: boisseau | C124: 4 | D124: 0.26 | G124: 0.14 | H124: 4 | I124: 0.26
A125: Céréales et oléagineux - local | B125: tonne | C125: 60 | D125: 10.704 | E125: 8 | F125: 13.15 | G125: 9.583088235 | H125: 9 | I125: 9.166666667 | J125: 10 | K125: 9.674 | L125: 26 | M125: 9.865384615 | N125: 6 | O125: 14.5 | P125: 8 | Q125: 13.6875
A126: Céréales et oléagineux - local | B126: tonne impériale | C126: 60 | D126: 9.730909091 | E126: 7.272727273 | F126: 11.95454545 | G126: 8.711898396 | H126: 9 | I126: 8.333333333 | J126: 10 | K126: 8.794545455 | L126: 26 | M126: 8.968531469 | N126: 6 | O126: 13.18181818 | P126: 8 | Q126: 12.44318182
A127: RÉCOLTE DES FOURRAGES - FOIN
A128: Fauchage | B128: acre | C128: 8 | D128: 22.25 | E128: 20 | F128: 25 | G128: 18.90909091 | L128: 3 | M128: 21.66666667
A129: Fauchage à disques | B129: acre | C129: 10 | D129: 23.2 | E129: 19.35 | F129: 30 | G129: 19.6 | L129: 5 | M129: 19.8 | N129: 3 | O129: 26.33333333
A130: Fauchage à disques avec conditionneur | B130: acre | C130: 16 | D130: 23.4375 | E130: 20 | F130: 25.75 | G130: 19.68518519 | H130: 3 | I130: 26.66666667 | L130: 10 | M130: 22.6
A131: Fauchage à disques avec conditionneur | B131: heure | C131: 6 | D131: 177.5 | G131: 146.4
A132: Râtelage | B132: acre | C132: 21 | D132: 13.97619048 | E132: 10 | F132: 18 | G132: 12.4047619 | H132: 4 | I132: 14.5 | L132: 10 | M132: 14.3 | N132: 3 | O132: 14
A133: Râtelage | B133: heure | C133: 3 | D133: 128.3333333 | G133: 95 | L133: 3 | M133: 128.3333333
A134: Fanage | B134: acre | C134: 10 | D134: 15.25 | E134: 12 | F134: 21.9 | G134: 12.15384615 | L134: 5 | M134: 15.8
A135: Regroupement des andains | B135: acre | C135: 10 | D135: 19.6 | E135: 15.7 | F135: 23.95 | G135: 15.83333333 | L135: 4 | M135: 19.25 | P135: 3 | Q135: 20
A136: Confection de balles carrées et ramassage | B136: balle | C136: 6 | D136: 1.516666667 | G136: 1.016666667
A137: Confection de grosses balles carrées | B137: pied | C137: 17 | D137: 1.820588235 | E137: 1.38 | F137: 2.15 | G137: 1.557936508 | J137: 4 | K137: 2 | L137: 7 | M137: 1.678571429 | P137: 4 | Q137: 2.05
A138: Confection de grosses balles carrées haute densité | B138: pied | C138: 5 | D138: 2.39 | G138: 1.727777778 | L138: 3 | M138: 2.333333333
A139: Confection de grosses balles rondes de moins de 1000 lb | B139: balle | C139: 11 | D139: 10 | E139: 9 | F139: 11 | G139: 9.714285714 | L139: 4 | M139: 9.5
A140: Confection de grosses balles rondes de plus de 1000 lb | B140: balle | C140: 14 | D140: 11.32142857 | E140: 9.95 | F140: 14.05 | G140: 9.55 | L140: 6 | M140: 10.75
A141: Mise en balles des tiges de maïs | B141: balle | C141: 6 | D141: 15.58333333 | G141: 12.375 | L141: 5 | M141: 15.3
A142: ENRUBANNAGE
A143: Individuel - avec plastique | B143: balle | C143: 5 | D143: 13.5 | G143: 7.25
A144: Boudin | B144: balle | C144: 11 | D144: 9.068181818 | E144: 5.875 | F144: 11 | G144: 7.590909091 | L144: 6 | M144: 8.833333333 | N144: 4 | O144: 9.1875
A145: PAILLE
A146: Confection de grosses balles carrées | B146: pied | C146: 9 | D146: 2.122222222 | E146: 1.83 | F146: 2.47 | L146: 4 | M146: 2.0375
A147: Confection de grosses balles rondes | B147: balle | C147: 9 | D147: 11.05555556 | E147: 8.4 | F147: 12.8 | G147: 10 | L147: 6 | M147: 9.916666667
A148: ENSILAGE
A149: Récolteuse automotrice/ramassage/soufflage ou compactage | B149: heure | C149: 8 | D149: 804.375 | E149: 556.25 | F149: 998.5 | G149: 606.6666667
A150: Récolteuse automotrice seulement | B150: heure | C150: 9 | D150: 655 | E150: 510 | F150: 700 | G150: 455.625 | J150: 3 | K150: 615 | L150: 3 | M150: 616.6666667
A151: Ramassage seulement – camions | B151: heure | C151: 4 | D151: 126.25 | G151: 141.6666667
A152: Ramassage seulement - remorques | B152: heure | C152: 7 | D152: 138.5714286 | G152: 149.2857143 | P152: 3 | Q152: 138.3333333
A153: Compactage seulement | B153: heure | C153: 5 | D153: 169.5 | G153: 162.8571429 | J153: 3 | K153: 174.1666667
A154: Soufflage seulement | B154: heure | C154: 3 | D154: 111.6666667
A155: ENSILAGE DE MAÏS
A156: Récolteuse automotrice/ramassage/soufflage ou compactage | B156: heure | C156: 4 | D156: 996.25 | G156: 670
A157: Récolteuse automotrice seulement | B157: heure | C157: 6 | D157: 685.8333333 | G157: 529
A158: Récolteuse automotrice avec conditionneur de grains seulement | B158: heure | C158: 8 | D158: 634.375 | E158: 500 | F158: 769 | G158: 477
A159: Ramassage seulement – camions | B159: heure | C159: 4 | D159: 141.25
A160: Ramassage seulement - remorques | B160: heure | C160: 6 | D160: 134.1666667 | G160: 155.8333333 | P160: 3 | Q160: 138.3333333
A161: Compactage seulement | B161: heure | C161: 6 | D161: 163.3333333 | G161: 155 | L161: 3 | M161: 180
A162: Soufflage seulement | B162: heure | C162: 3 | D162: 81.66666667 | G162: 75
A163: MANUTENTION DES FUMIERS - FUMIER COMPLET (SOLIDE)
A164: Chargement seulement | B164: heure | C164: 12 | D164: 113.3333333 | E164: 75 | F164: 158.75 | G164: 113.0769231 | L164: 7 | M164: 118.5714286
A165: Épandage seulement | B165: heure | C165: 13 | D165: 135.5769231 | E165: 62 | F165: 221 | G165: 138.8888889 | J165: 4 | K165: 173.75 | L165: 5 | M165: 142
A166: Chargement et épandage | B166: heure | C166: 10 | D166: 237.5 | E166: 157.25 | F166: 304 | G166: 220 | L166: 6 | M166: 239.1666667
A167: MANUTENTION DES FUMIERS - LISIER (FUMIER LIQUIDE)
A168: Aspersion par canon | B168: 1 000 gallons impériale | C168: 12 | D168: 15 | E168: 14 | F168: 16.5 | G168: 12.74454545 | L168: 5 | M168: 14.6 | P168: 3 | Q168: 14
A169: Camion-citerne – application en surface seulement | B169: 1 000 gallons impériale | C169: 5 | D169: 13 | G169: 12.25
A170: Tonne - épandage seulement | B170: heure | C170: 11 | D170: 311.3636364 | E170: 237.5 | F170: 400 | G170: 243.125
A171: Transport par camion | B171: heure | C171: 5 | D171: 213 | G171: 160 | L171: 3 | M171: 208.3333333
A172: Frais additionnel pour sable | B172: 1 000 gallons impériale | C172: 7 | D172: 1.921428571 | G172: 2.8875 | L172: 4 | M172: 2.25
A173: Agitation de pompe en fosse | B173: heure | C173: 9 | D173: 177.7777778 | E173: 146 | F173: 196 | G173: 73.02083333 | L173: 6 | M173: 191.6666667
A174: Agitation de pompe en fosse | B174: jour | C174: 4 | D174: 300
A175: Remorque à fumier | B175: heure | C175: 5 | D175: 401 | G175: 357 | L175: 3 | M175: 418.3333333
A176: DIVERS
A177: Déneigement - chasse-neige | B177: heure | C177: 12 | D177: 190 | E177: 141.25 | F177: 277.25 | G177: 142.1818182 | L177: 9 | M177: 206.6666667
A178: Déneigement - souffleuse | B178: heure | C178: 16 | D178: 156.5625 | E178: 90 | F178: 231.25 | G178: 139.5714286 | H178: 3 | I178: 125 | L178: 8 | M178: 190.625
A179: Location de tracteurs | B179: heure | C179: 10 | D179: 98.9 | E179: 51.4 | F179: 141.25 | G179: 116 | L179: 6 | M179: 83.16666667
A180: Location de tracteurs | B180: puissance.heure | C180: 5 | D180: 0.418 | G180: 0.3983333333 | L180: 3 | M180: 0.43
